bitfinex/quotes_ETHUSD_20250905
["timestamp","ask_amount","ask_price","bid_price","bid_amount"]
[1757108908419,16.96090473,4311.0,4310.9,0.1152]
[1757108908829,2.31970122,4310.9,4310.8,0.029]
[1757108909057,6.2295158,4310.9,4310.8,0.029]
[1757108909350,6.9847158,4310.9,4310.8,0.029]
[1757108909948,6.2295158,4310.9,4310.8,0.029]
[1757108910340,7.4595158,4310.9,4310.8,0.029]
[1757108910524,7.7728158,4310.9,4310.8,0.029]
[1757108910731,8.2147158,4310.9,4310.8,0.029]
[1757108911857,9.4447158,4310.9,4310.8,0.029]
[1757108912055,3.05990797,4310.8,4308.6,0.004]
[1757108912255,2.3205625,4309.3,4308.6,1e-08]
[1757108912577,2.63418564,4308.7,4308.6,1e-08]
[1757108912773,2.63418564,4308.7,4307.8,1e-08]
[1757108912774,2.32131665,4307.9,4307.8,1e-08]
[1757108912943,6.26031665,4307.9,4307.8,1e-08]
[1757108913142,2.32131665,4307.9,4307.8,0.31150001]
[1757108913357,6.26031665,4307.9,4307.8,0.74880001]
[1757108913574,6.26031665,4307.9,4307.8,0.31150001]
[1757108914135,2.32131665,4307.9,4307.8,0.31150001]
[1757108914335,2.32131665,4307.9,4307.8,1.49070001]
[1757108914634,3.55131665,4307.9,4307.8,1.49070001]
[1757108915270,3.55131665,4307.9,4307.8,1.51570001]
[1757108916077,4.78131665,4307.9,4307.8,0.77380001]
[1757108917239,4.78131665,4307.9,4307.8,0.33650001]
[1757108917442,6.01131665,4307.9,4307.8,0.77380001]
[1757108918886,7.24131665,4307.9,4307.8,0.33650001]
[1757108920551,8.47131665,4307.9,4307.8,0.33650001]
[1757108921368,8.47131665,4307.9,4307.8,0.77010001]
[1757108922143,9.70131665,4307.9,4307.8,0.88610001]
[1757108922979,9.70131665,4307.9,4307.8,0.45250001]
[1757108923675,8.61,4307.9,4307.8,0.88610001]
[1757108923874,8.61,4307.9,4307.8,11.56537054]
[1757108924076,8.61,4307.9,4307.8,19.3704232]
[1757108924949,9.84,4307.9,4307.8,19.3704232]
[1757108926181,9.84,4307.9,4307.8,8.61810001]
[1757108926381,11.07,4307.9,4307.8,8.61810001]
[1757108926570,11.07,4307.9,4307.8,10.93947054]
[1757108926881,11.07,4307.9,4307.8,11.64047054]
[1757108927655,12.3,4307.9,4307.8,11.64047054]
[1757108928626,12.3,4307.9,4307.8,10.50587054]
[1757108929094,13.53,4307.9,4307.8,10.50587054]
[1757108929884,13.53,4307.9,4307.8,4.24450001]
[1757108930088,13.53,4307.9,4307.8,8.18450001]
[1757108930284,14.76,4307.9,4307.8,4.24450001]
[1757108930485,14.76,4307.9,4307.8,4.08100001]
[1757108930486,21.00061665,4307.9,4307.8,4.08100001]
[1757108931574,21.00061665,4307.9,4307.8,0.14100001]
[1757108931786,22.23061665,4307.9,4307.8,0.14100001]
[1757108933183,23.46061665,4307.9,4307.8,0.14100001]
[1757108933697,23.46161665,4307.9,4307.8,0.14100001]
[1757108934109,23.46161665,4307.9,4307.8,0.02500001]
[1757108934110,23.50161665,4307.9,4307.8,0.02500001]
[1757108934271,27.44161665,4307.9,4307.8,0.02500001]
[1757108934472,28.67161665,4307.9,4307.8,0.02500001]
[1757108936090,28.67161665,4307.9,4307.8,1e-08]
[1757108936091,29.90161665,4307.9,4307.8,1e-08]
[1757108937370,31.13161665,4307.9,4307.8,1e-08]
[1757108940210,32.36161665,4307.9,4307.8,1e-08]
[1757108940414,33.59161665,4307.9,4307.8,1e-08]
[1757108940574,33.59261665,4307.9,4307.8,1e-08]
[1757108941284,33.13651665,4307.9,4307.8,1e-08]
[1757108941710,34.36651665,4307.9,4307.8,1e-08]
[1757108941906,34.82261665,4307.9,4307.8,1e-08]
[1757108942814,32.37931665,4307.9,4307.8,1e-08]
[1757108943172,33.60931665,4307.9,4307.8,1e-08]
[1757108943596,28.19231665,4307.9,4307.8,0.29700001]
[1757108944501,29.42231665,4307.9,4307.8,0.29700001]
[1757108945109,27.101,4307.9,4307.8,0.73060001]
[1757108945309,27.101,4307.9,4307.8,0.29700001]
[1757108945513,27.101,4307.9,4307.8,0.73060001]
[1757108945902,28.331,4307.9,4307.8,0.73060001]
[1757108946103,28.331,4307.9,4307.8,1.54760001]
[1757108946321,30.65231665,4307.9,4307.8,1.54760001]
[1757108946501,30.65231665,4307.9,4307.8,0.41300001]
[1757108946690,30.65231665,4307.9,4307.8,0.11600001]
[1757108946887,35.36352462,4307.9,4307.8,0.11600001]
[1757108947192,36.59352462,4307.9,4307.8,1e-08]
[1757108948824,37.82352462,4307.9,4307.8,1e-08]
[1757108950406,39.05352462,4307.9,4307.8,1e-08]
[1757108951942,40.28352462,4307.9,4307.8,1e-08]
[1757108952493,46.82890312,4307.9,4307.8,1e-08]
[1757108952690,39.82742462,4307.9,4307.8,1e-08]
[1757108952915,35.57231665,4307.9,4307.8,0.31210001]
[1757108953105,35.57231665,4307.9,4307.8,0.78650001]
[1757108953106,36.80231665,4307.9,4307.8,0.78650001]
[1757108954635,38.03231665,4307.9,4307.8,0.78650001]
[1757108955600,38.03231665,4307.9,4307.8,0.31210001]
[1757108956133,36.941,4307.9,4307.8,0.31210001]
[1757108956340,39.26231665,4307.9,4307.8,0.31210001]
[1757108956541,36.941,4307.9,4307.8,0.31210001]
[1757108956992,36.941,4307.9,4307.8,0.42810001]
[1757108957524,38.171,4307.9,4307.8,0.42810001]
[1757108958634,40.78161665,4307.9,4307.8,0.11600001]
[1757108958839,42.01161665,4307.9,4307.8,0.11600001]
[1757108959042,43.66181665,4307.9,4307.8,0.11600001]
[1757108960303,44.89181665,4307.9,4307.8,0.11600001]
[1757108960506,42.95231665,4307.9,4307.8,0.11600001]
[1757108961697,44.18231665,4307.9,4307.8,0.11600001]
[1757108961933,44.18231665,4307.9,4307.8,0.42810001]
[1757108963164,43.091,4307.9,4307.8,0.90250001]
[1757108963857,45.41231665,4307.9,4307.8,0.90250001]
[1757108964360,45.41231665,4307.9,4307.8,0.42810001]
[1757108964517,46.64231665,4307.9,4307.8,0.42810001]
[1757108965822,47.87231665,4307.9,4307.8,0.42810001]
[1757108966658,45.551,4307.9,4307.8,0.90250001]
[1757108967355,45.551,4307.9,4307.8,0.42810001]
[1757108967562,46.781,4307.9,4307.8,0.42810001]
[1757108969065,48.011,4307.9,4307.8,0.42810001]
[1757108970292,49.241,4307.9,4307.8,0.42810001]
[1757108971682,50.471,4307.9,4307.8,0.42810001]
[1757108971993,50.471,4307.9,4307.8,7.52057054]
[1757108972296,50.471,4307.9,4307.8,9.23057054]
[1757108972849,50.471,4307.9,4307.8,13.16957054]
[1757108973049,51.701,4307.9,4307.8,13.16957054]
[1757108974949,52.931,4307.9,4307.8,13.16957054]
[1757108976278,52.931,4307.9,4307.8,19.71494904]
[1757108976478,54.161,4307.9,4307.8,19.71494904]
[1757108978336,55.391,4307.9,4307.8,19.09424904]
[1757108978898,55.391,4307.9,4307.8,19.71494904]
[1757108979828,56.621,4307.9,4307.8,19.71494904]
[1757108980196,56.621,4307.9,4307.8,19.09424904]
[1757108980390,56.621,4307.9,4307.8,19.71494904]
[1757108980910,56.621,4307.9,4307.8,26.25412754]
[1757108981113,57.851,4307.9,4307.8,33.42412754]
[1757108981334,53.38086383,4307.9,4307.8,33.42412754]
[1757108981525,0.001,4308.4,4308.3,3.11310113]
[1757108981732,0.001,4308.4,4308.3,21.94147963]
[1757108981885,0.001,4308.4,4308.3,23.45197963]
[1757108982819,0.026,4308.8,4308.3,23.45197963]
[1757108983019,0.026,4308.8,4308.7,10.3373785]
[1757108983318,0.026,4308.8,4308.7,14.3913785]
[1757108983508,0.3191,4308.8,4308.7,14.3913785]
[1757108983689,0.3191,4308.8,4308.7,15.08874721]
[1757108983887,2.4255,4308.8,4308.7,15.08874721]
[1757108984107,2.4255,4308.8,4308.7,14.3913785]
[1757108984493,2.4255,4308.8,4308.7,13.5993785]
[1757108984702,4.74633178,4308.8,4308.7,9.6613785]
[1757108984907,2.4255,4308.8,4308.7,14.3913785]
[1757108985143,3.6555,4308.8,4308.7,14.3913785]
[1757108985837,3.6555,4308.8,4308.7,10.4533785]
[1757108985995,3.6555,4308.8,4308.7,14.3913785]
[1757108986438,4.8855,4308.8,4308.7,14.3913785]
[1757108987011,4.4149,4308.8,4308.7,14.3913785]
[1757108987406,2.486,4308.8,4308.7,14.3913785]
[1757108987804,3.716,4308.8,4308.7,14.3913785]
[1757108988215,6.1155,4308.8,4308.7,14.3913785]
[1757108989234,5.6449,4308.8,4308.7,14.3913785]
[1757108989418,6.8749,4308.8,4308.7,14.3913785]
[1757108989726,6.8749,4308.8,4307.8,1.71000001]
[1757108989727,2.32088564,4308.7,4307.8,1e-08]
[1757108989933,2.32131665,4307.9,4307.8,1e-08]
[1757108990094,2.61441665,4307.9,4307.8,1e-08]
[1757108990436,4.72081665,4307.9,4307.8,3.93800001]
[1757108990892,5.95081665,4307.9,4307.8,3.93800001]
[1757108992295,7.18081665,4307.9,4307.8,3.93800001]
[1757108993730,8.41081665,4307.9,4307.8,3.93800001]
[1757108994713,7.64711665,4307.9,4307.8,3.93800001]
[1757108995121,8.87711665,4307.9,4307.8,3.93800001]
[1757108995319,7.24131665,4307.9,4307.8,3.93800001]
[1757108996221,7.53441665,4307.9,4307.8,3.93800001]
[1757108996438,8.76441665,4307.9,4307.8,3.93800001]
[1757108997820,8.47131665,4307.9,4307.8,4.24360001]
[1757108998009,9.70131665,4307.9,4307.8,3.93800001]
[1757108998698,9.99441665,4307.9,4307.8,3.93800001]
[1757108999438,11.22441665,4307.9,4307.8,3.93800001]
[1757108999633,11.22441665,4307.9,4307.8,4.05400001]
[1757109000000,10.93131665,4307.9,4307.8,4.05400001]
[1757109000206,11.22441665,4307.9,4307.8,4.05400001]
[1757109000421,12.86021665,4307.9,4307.8,4.05400001]
[1757109000846,11.7689,4307.9,4307.8,4.05400001]
[1757109001005,14.09021665,4307.9,4307.8,4.05400001]
[1757109001208,9.84,4307.9,4307.8,10.47297054]
[1757109001549,9.84,4307.9,4307.8,11.90867054]
[1757109002047,11.07,4307.9,4307.8,11.90867054]
[1757109002253,11.07,4307.9,4307.8,10.94117054]
[1757109002401,11.07,4307.9,4307.8,8.61980001]
[1757109002626,11.07,4307.9,4307.8,10.94117054]
[1757109003524,12.3,4307.9,4307.8,10.16737054]
[1757109004074,12.3,4307.9,4307.8,10.47297054]
[1757109004473,12.3,4307.9,4307.8,11.90867054]
[1757109004965,13.53,4307.9,4307.8,11.90867054]
[1757109005173,13.53,4307.9,4307.8,10.94117054]
[1757109006666,14.76,4307.9,4307.8,10.94117054]
[1757109008068,4.946,4308.8,4308.7,3.11288564]
[1757109008376,4.946,4308.8,4308.7,10.01641916]
[1757109008575,4.946,4308.8,4308.7,13.96541916]
[1757109008891,4.946,4308.8,4308.7,14.66264686]
[1757109009566,6.176,4308.8,4308.7,10.71364686]
[1757109009770,6.176,4308.8,4308.7,14.66164686]
[1757109011167,6.176,4308.8,4308.7,13.65444686]
[1757109011390,7.406,4308.8,4308.7,13.65444686]
[1757109011774,7.406,4308.8,4308.7,14.16971334]
[1757109011975,0.001,4309.7,4309.2,3.11261635]
[1757109012145,0.001,4309.7,4309.2,7.05861635]
[1757109012357,0.001,4309.7,4309.2,10.05861635]
[1757109012675,0.001,4309.7,4309.2,10.46987575]
[1757109012972,2.461,4309.3,4309.2,10.29458209]
[1757109014379,3.691,4309.3,4309.2,10.29458209]
[1757109014552,3.691,4309.3,4309.2,10.72308209]
[1757109014752,3.691,4309.3,4309.2,10.29458209]
[1757109015190,3.691,4309.3,4309.2,10.72308209]
[1757109015692,4.921,4309.3,4309.2,11.42030979]
[1757109015891,4.921,4309.3,4309.2,10.99180979]
[1757109016290,4.921,4309.3,4309.2,6.75180979]
[1757109016587,5.2336,4309.3,4309.2,6.75180979]
[1757109016791,5.2336,4309.3,4309.2,10.69280979]
[1757109016994,6.151,4309.3,4309.2,10.69280979]
[1757109017962,6.151,4309.3,4309.2,10.80880979]
[1757109018362,7.381,4309.3,4309.2,10.80880979]
[1757109019193,7.381,4309.3,4309.2,11.10280979]
[1757109019498,7.381,4309.3,4309.2,10.80880979]
[1757109019670,8.611,4309.3,4309.2,10.80880979]
[1757109021063,9.841,4309.3,4309.2,10.80880979]
[1757109023209,11.071,4309.3,4309.2,10.80880979]
[1757109024070,11.071,4309.3,4309.2,11.10280979]
[1757109024606,12.301,4309.3,4309.2,11.10280979]
[1757109025415,12.301,4309.3,4309.2,18.27280979]
[1757109026439,13.531,4309.3,4309.2,18.27280979]
[1757109027217,13.531,4309.3,4309.2,11.10280979]
[1757109027584,14.761,4309.3,4309.2,11.10280979]
[1757109029204,15.991,4309.3,4309.2,11.10280979]
[1757109031123,17.221,4309.3,4309.2,11.10280979]
[1757109032688,18.451,4309.3,4309.2,11.10280979]
[1757109033011,18.451,4309.3,4309.2,8.8402277]
[1757109033209,18.451,4309.3,4309.2,11.16084405]
[1757109034103,19.681,4309.3,4309.2,11.16084405]
[1757109035391,19.681,4309.3,4309.2,17.316244]
[1757109035592,20.911,4309.3,4309.2,17.316244]
[1757109037525,22.141,4309.3,4309.2,17.316244]
[1757109038130,21.86225427,4309.3,4309.2,17.316244]
[1757109038900,23.09225427,4309.3,4309.2,17.316244]
[1757109039302,8.75009425,4309.3,4309.2,18.348844]
[1757109039508,8.75009425,4309.3,4309.2,17.753644]
[1757109039827,8.75009425,4309.3,4309.2,17.316244]
[1757109040022,8.75009425,4309.3,4309.2,19.39788197]
[1757109040219,9.98009425,4309.3,4309.2,17.316244]
[1757109041406,9.98009425,4309.3,4309.2,19.83528197]
[1757109041608,11.21009425,4309.3,4309.2,19.83528197]
[1757109042734,11.21009425,4309.3,4309.2,17.753644]
[1757109042934,12.44009425,4309.3,4309.2,17.753644]
[1757109044736,13.67009425,4309.3,4309.2,17.753644]
[1757109045034,13.67009425,4309.3,4309.2,17.316244]
[1757109045204,13.67009425,4309.3,4309.2,19.39788197]
[1757109046006,14.90009425,4309.3,4309.2,19.39788197]
[1757109046926,14.90009425,4309.3,4309.2,13.081244]
[1757109046927,17.12879425,4309.3,4309.2,13.081244]
[1757109047123,17.55959425,4309.3,4309.2,17.016244]
[1757109047335,18.78959425,4309.3,4309.2,16.224244]
[1757109047541,18.78959425,4309.3,4309.2,12.289244]
[1757109047729,18.78959425,4309.3,4309.2,16.224244]
[1757109048034,18.78959425,4309.3,4309.2,17.016244]
[1757109048817,20.01959425,4309.3,4309.2,17.016244]
[1757109050242,21.24959425,4309.3,4309.2,17.016244]
[1757109051444,22.47959425,4309.3,4309.2,17.016244]
[1757109053061,23.70959425,4309.3,4309.2,17.016244]
[1757109054561,23.71059425,4309.3,4309.2,17.016244]
[1757109054863,24.94059425,4309.3,4309.2,17.016244]
[1757109056852,26.17059425,4309.3,4309.2,17.016244]
[1757109058365,27.40059425,4309.3,4309.2,17.016244]
[1757109059065,24.74109425,4309.3,4309.2,17.016244]
[1757109059526,26.96979425,4309.3,4309.2,17.016244]
[1757109059727,28.19979425,4309.3,4309.2,17.016244]
[1757109060148,28.63059425,4309.3,4309.2,17.015244]
[1757109061356,29.86059425,4309.3,4309.2,17.015244]
[1757109062531,31.09059425,4309.3,4309.2,17.015244]
[1757109064065,32.32059425,4309.3,4309.2,17.015244]
[1757109065257,32.32059425,4309.3,4309.2,0.6972277]
[1757109065568,2.32073582,4309.0,4308.4,2.32102922]
[1757109065761,2.32073582,4309.0,4308.9,0.792]
[1757109065935,2.60763582,4309.0,4308.9,0.792]
[1757109066129,2.32077792,4308.9,4308.8,1.9367]
[1757109066340,5.18620735,4308.9,4308.8,1.9367]
[1757109066543,3.15232943,4308.9,4308.8,2.7287]
[1757109066763,3.15232943,4308.9,4308.8,1.9367]
[1757109066962,4.38232943,4308.9,4308.8,2.7287]
[1757109068437,6.70310735,4308.9,4308.8,2.7287]
[1757109068680,5.61232943,4308.9,4308.8,2.7287]
[1757109070076,6.84232943,4308.9,4308.8,2.7287]
[1757109070574,6.84232943,4308.9,4308.8,4.725]
[1757109071506,8.07232943,4308.9,4308.8,4.725]
[1757109071683,8.07232943,4308.9,4308.8,4.729]
[1757109072977,10.39310735,4308.9,4308.8,0.004]
[1757109073280,11.62310735,4308.9,4308.8,3.937]
[1757109073882,11.62310735,4308.9,4308.8,0.004]
[1757109074468,12.85310735,4308.9,4308.8,0.004]
[1757109075857,14.08310735,4308.9,4308.8,0.004]
[1757109076061,18.01710735,4308.9,4308.8,0.004]
[1757109077188,19.24710735,4308.9,4308.8,0.004]
[1757109077384,24.48110149,4308.9,4308.8,0.004]
[1757109078685,25.71110149,4308.9,4308.8,0.004]
[1757109080291,26.94110149,4308.9,4308.8,0.004]
[1757109082083,28.17110149,4308.9,4308.8,0.004]
[1757109083488,29.40110149,4308.9,4308.8,0.004]
[1757109084990,30.63110149,4308.9,4308.8,0.004]
[1757109086798,31.86110149,4308.9,4308.8,0.004]
[1757109088071,33.09110149,4308.9,4308.8,1e-08]
[1757109089570,33.09210149,4308.9,4308.8,1e-08]
[1757109089782,34.32210149,4308.9,4308.8,1e-08]
[1757109091085,35.55210149,4308.9,4308.8,1e-08]
[1757109092608,36.78210149,4308.9,4308.8,1e-08]
[1757109093421,2.32088564,4308.7,4306.8,0.025]
[1757109093579,2.32088564,4308.7,4306.9,1.9623]
[1757109093580,2.32180171,4307.0,4306.9,1.9623]
[1757109093784,2.32180171,4307.0,4306.9,2.2736]
[1757109095085,2.32180171,4307.0,4306.9,0.3113]
[1757109095485,3.55180171,4307.0,4306.9,0.3113]
[1757109095682,2.32185562,4306.9,4306.8,0.025]
[1757109095907,2.61195562,4306.9,4306.8,0.025]
[1757109096183,3.04995562,4306.9,4306.8,0.025]
[1757109097120,5.65405562,4306.9,4306.8,0.025]
[1757109097287,6.09205562,4306.9,4306.8,0.025]
[1757109097486,8.26405034,4306.9,4306.8,0.025]
[1757109098392,9.49405034,4306.9,4306.8,0.025]
[1757109099033,7.68195034,4306.9,4306.8,0.025]
[1757109099690,8.91195034,4306.9,4306.8,0.025]
[1757109100086,8.47395034,4306.9,4306.8,0.025]
[1757109100287,10.78765034,4306.9,4306.8,0.025]
[1757109101100,12.01765034,4306.9,4306.8,0.025]
[1757109101924,12.01765034,4306.9,4306.8,1e-08]
[1757109102515,13.24765034,4306.9,4306.8,1e-08]
[1757109103905,14.47765034,4306.9,4306.8,1e-08]
[1757109105023,12.15945034,4306.9,4306.8,1e-08]
[1757109105223,17.03785034,4306.9,4306.8,1e-08]
[1757109106796,19.18145034,4306.9,4306.8,1e-08]
[1757109107007,20.86715034,4306.9,4306.8,1e-08]
[1757109107591,26.10114448,4306.9,4306.8,1e-08]
[1757109108491,27.33114448,4306.9,4306.8,1e-08]
[1757109109822,28.56114448,4306.9,4306.8,1e-08]
[1757109110530,25.96184448,4306.9,4306.8,1e-08]
[1757109110719,25.96184448,4306.9,4306.8,0.30490001]
[1757109110922,26.24744448,4306.9,4306.8,1e-08]
[1757109111116,29.79114448,4306.9,4306.8,1e-08]
[1757109112818,31.02114448,4306.9,4306.8,1e-08]
[1757109114215,32.25114448,4306.9,4306.8,1e-08]
[1757109115321,35.25114448,4306.9,4306.8,1e-08]
[1757109115521,41.71513862,4306.9,4306.8,1e-08]
[1757109116127,36.48114448,4306.9,4306.8,1e-08]
[1757109116502,41.71513862,4306.9,4306.8,1e-08]
[1757109117039,42.94513862,4306.9,4306.8,1e-08]
[1757109118342,44.17513862,4306.9,4306.8,1e-08]
[1757109118741,44.2915125,4306.9,4306.8,1e-08]
[1757109119306,44.17513862,4306.9,4306.8,1e-08]
[1757109120035,41.86143862,4306.9,4306.8,1e-08]
[1757109120236,37.57184448,4306.9,4306.8,1e-08]
[1757109120637,32.33785034,4306.9,4306.8,1e-08]
[1757109121511,33.56785034,4306.9,4306.8,1e-08]
[1757109122207,2.32207128,4306.5,4305.8,0.025]
[1757109122417,2.32239485,4305.9,4305.8,0.025]
[1757109122944,3.55239485,4305.9,4305.8,0.2972]
[1757109123140,3.55239485,4305.9,4305.8,2.1197]
[1757109124243,9.07198899,4305.9,4305.8,0.025]
[1757109124446,11.8802912,4305.9,4305.8,0.025]
[1757109125314,16.2689912,4305.9,4305.8,0.025]
[1757109125744,17.4989912,4305.9,4305.8,0.025]
[1757109125919,17.4989912,4305.9,4304.9,0.1701]
[1757109125920,30.74198534,4305.9,4304.8,1e-08]
[1757109126122,10.55692847,4304.9,4304.8,1e-08]
[1757109126326,14.48892847,4304.9,4304.8,1e-08]
[1757109126515,17.08822847,4304.9,4304.8,1e-08]
[1757109126706,19.02933827,4304.9,4304.8,1e-08]
[1757109127107,20.25933827,4304.9,4304.8,1e-08]
[1757109128716,21.48933827,4304.9,4304.8,1e-08]
[1757109129246,19.17663827,4304.9,4304.8,1e-08]
[1757109129549,20.11840437,4304.9,4304.8,1e-08]
[1757109130128,21.34840437,4304.9,4304.8,1e-08]
[1757109130521,21.34840437,4304.9,4304.8,0.27220001]
[1757109130522,17.12980437,4304.9,4304.8,0.27220001]
[1757109130723,14.88704413,4304.9,4304.8,0.27220001]
[1757109130935,12.94593433,4304.9,4304.8,2.10740001]
[1757109131246,13.06193433,4304.9,4304.8,2.10740001]
[1757109131449,14.29193433,4304.9,4304.8,2.10740001]
[1757109131950,7.35893433,4304.9,4304.8,2.10740001]
[1757109132248,11.17593433,4304.9,4304.8,0.27220001]
[1757109132422,12.52581472,4304.9,4304.8,0.27220001]
[1757109132819,13.75581472,4304.9,4304.8,0.27220001]
[1757109133451,19.39361472,4304.9,4304.8,1e-08]
[1757109134034,20.62361472,4304.9,4304.8,1e-08]
[1757109134648,20.18601472,4304.9,4304.8,1e-08]
[1757109134842,20.62361472,4304.9,4304.8,1e-08]
[1757109135435,21.85361472,4304.9,4304.8,1e-08]
[1757109136658,23.08361472,4304.9,4304.8,1e-08]
[1757109137532,2.32316773,4304.5,4303.8,1e-08]
[1757109137847,11.49923429,4303.9,4303.8,1e-08]
[1757109138025,15.73323429,4303.9,4303.8,1e-08]
[1757109138222,18.07003429,4303.9,4303.8,1e-08]
[1757109139435,19.30003429,4303.9,4303.8,1e-08]
[1757109139739,19.63303945,4303.9,4303.8,1e-08]
[1757109139951,19.33203945,4303.9,4303.8,1e-08]
[1757109140136,18.89443945,4303.9,4303.8,1e-08]
[1757109140339,21.53223945,4303.9,4303.8,1e-08]
[1757109140542,15.35647921,4303.9,4303.8,1e-08]
[1757109140741,16.58647921,4303.9,4303.8,1e-08]
[1757109141154,14.24967921,4303.9,4303.8,1e-08]
[1757109141358,16.58647921,4303.9,4303.8,1e-08]
[1757109141967,2.32401403,4302.9,4302.8,1e-08]
[1757109142142,6.27201403,4302.9,4302.8,1e-08]
[1757109142465,9.27201403,4302.9,4302.8,1e-08]
[1757109142762,9.27201403,4302.9,4302.8,0.27220001]
[1757109142931,9.27201403,4302.9,4302.8,2.10740001]
[1757109143532,10.50201403,4302.9,4302.8,0.27220001]
[1757109143836,12.64326059,4302.9,4302.8,0.27220001]
[1757109144871,7.50201403,4302.9,4302.8,2.10740001]
[1757109145027,8.73201403,4302.9,4302.8,2.10740001]
[1757109146155,8.73201403,4302.9,4302.8,1e-08]
[1757109146351,8.73201403,4302.9,4302.8,0.27220001]
[1757109146550,9.96201403,4302.9,4302.8,0.27220001]
[1757109146954,12.71798664,4302.9,4302.8,1e-08]
[1757109147274,14.61718664,4302.9,4302.8,1e-08]
[1757109148169,15.84718664,4302.9,4302.8,1e-08]
[1757109149538,17.07718664,4302.9,4302.8,1e-08]
[1757109150386,2.32471638,4301.6,4301.1,1.9512]
[1757109150577,2.32471638,4301.6,4301.1,1.8352]
[1757109150871,3.67071638,4301.6,4300.9,0.2861]
[1757109151071,3.55471638,4301.6,4301.5,2.1104]
[1757109151270,3.55471638,4301.6,4301.5,2.2805]
[1757109151678,3.55471638,4301.6,4301.5,2.1104]
[1757109151881,3.55471638,4301.6,4301.5,2.2805]
[1757109152487,4.78471638,4301.6,4301.5,2.2805]
[1757109153562,4.78471638,4301.6,4301.5,2.1104]
[1757109153766,6.01471638,4301.6,4301.5,2.2805]
[1757109154852,6.01471638,4301.6,4301.5,2.1104]
[1757109155089,7.24471638,4301.6,4301.5,2.1104]
[1757109156278,7.24471638,4301.6,4301.5,2.2805]
[1757109156484,8.47471638,4301.6,4301.5,2.2805]
[1757109157175,8.47471638,4301.6,4301.5,2.1104]
[1757109157373,8.47471638,4301.6,4301.5,0.2752]
[1757109157573,9.85565347,4301.6,4301.5,0.003]
[1757109157774,11.08565347,4301.6,4301.5,0.003]
[1757109157953,11.52325347,4301.6,4301.5,0.003]
[1757109158477,11.52325347,4301.6,4301.5,0.007]
[1757109158680,13.42245347,4301.6,4301.5,0.007]
[1757109159274,14.65245347,4301.6,4301.5,0.007]
[1757109160285,12.75325347,4301.6,4301.5,0.007]
[1757109160472,12.01465347,4301.6,4301.5,0.007]
[1757109160671,13.24465347,4301.6,4301.5,0.007]
[1757109161196,14.11145347,4301.6,4301.5,0.007]
[1757109161693,13.36065347,4301.6,4301.5,0.007]
[1757109161899,13.67325347,4301.6,4301.5,0.007]
[1757109162076,15.34145347,4301.6,4301.5,0.007]
[1757109162595,14.90325347,4301.6,4301.5,0.007]
[1757109162768,14.59065347,4301.6,4301.5,0.007]
[1757109163097,13.51071638,4301.6,4301.5,0.2792]
[1757109163268,13.51071638,4301.6,4301.5,0.007]
[1757109163603,14.74071638,4301.6,4301.5,0.007]
[1757109163965,5.32477042,4301.5,4300.8,1e-08]
[1757109164292,2.32509474,4300.9,4300.8,1e-08]
[1757109164665,2.32509474,4300.9,4300.8,2.10820001]
[1757109164866,3.55509474,4300.9,4300.8,2.10820001]
[1757109165422,3.86769474,4300.9,4300.8,1e-08]
[1757109165602,3.55509474,4300.9,4300.8,1e-08]
[1757109166304,4.78509474,4300.9,4300.8,1e-08]
[1757109166498,4.78509474,4300.9,4300.8,0.27220001]
[1757109166923,5.89240828,4300.9,4300.8,1e-08]
[1757109167083,4.78509474,4300.9,4300.8,0.27220001]
[1757109167774,6.01509474,4300.9,4300.8,0.27220001]
[1757109167979,6.32769474,4300.9,4300.8,1e-08]
[1757109168179,6.01509474,4300.9,4300.8,0.27220001]
[1757109168412,6.01509474,4300.9,4300.8,1e-08]
[1757109168617,6.76589474,4300.9,4300.8,1e-08]
[1757109168824,6.32769474,4300.9,4300.8,1e-08]
[1757109169237,2.32520287,4300.7,4300.6,1e-08]
[1757109169535,2.32520287,4300.7,4298.9,0.003]
[1757109169536,2.32581453,4299.6,4298.9,0.003]
[1757109169707,2.32612235,4299.0,4298.9,0.003]
[1757109170113,2.32612235,4299.0,4298.9,0.2752]
[1757109170316,2.32612235,4299.0,4298.9,0.003]
[1757109170508,2.32612235,4299.0,4298.9,0.2752]
[1757109171831,2.32612235,4299.0,4298.9,2.1112]
[1757109172759,2.32597004,4299.3,4298.9,2.1112]
[1757109172966,3.981,4299.8,4298.9,0.4453]
[1757109173108,2.32612235,4299.0,4298.9,0.003]
[1757109173655,2.32612235,4299.0,4298.9,0.4453]
[1757109173957,2.32612235,4299.0,4298.9,0.5613]
[1757109174124,2.32612235,4299.0,4298.9,2.2272]
[1757109174455,0.5141,4299.7,4298.9,2.2272]
[1757109174655,2.32607724,4299.1,4298.9,2.2272]
[1757109174813,2.3260291,4299.2,4299.0,1.836]
[1757109175018,2.32597187,4299.3,4299.0,0.116]
[1757109175219,2.32606824,4299.1,4299.0,0.116]
[1757109175544,2.32606824,4299.1,4299.0,0.12]
[1757109175754,2.32606824,4299.1,4298.1,0.69919069]
[1757109175755,5.32612235,4299.0,4297.8,0.025]
[1757109175917,2.32623057,4298.8,4297.8,0.025]
[1757109176250,2.32671769,4297.9,4297.8,0.025]
[1757109176636,2.32671769,4297.9,4297.8,0.2972]
[1757109177246,3.07751769,4297.9,4297.8,0.025]
[1757109177437,5.30055491,4297.9,4297.8,0.025]
[1757109177758,2.79205491,4297.9,4297.8,0.025]
[1757109177920,2.32671769,4297.9,4297.8,0.025]
[1757109178266,3.0,4297.8,4294.3,1.713]
[1757109178435,6.5469,4297.7,4295.7,1.836]
[1757109178758,2.32708376,4297.3,4295.8,1.3781]
[1757109178962,2.32704256,4297.3,4297.2,0.2722]
[1757109179146,2.32649144,4298.4,4297.2,0.2722]
[1757109179147,2.32651104,4298.3,4297.3,0.792]
[1757109179551,0.4382,4298.5,4297.3,0.792]
[1757109179730,2.32672138,4297.9,4297.3,0.792]
[1757109179932,2.32672138,4297.9,4297.8,0.2722]
[1757109180245,2.32661769,4298.1,4297.8,0.2722]
[1757109180468,2.32664877,4298.1,4297.8,0.2722]